bitfinex/quotes_BTCUSD_20250607
["timestamp","ask_amount","ask_price","bid_price","bid_amount"]
[1749339674117,1.71671944,105700.0,105690.0,0.19774495]
[1749339674478,1.71671932,105700.0,105690.0,0.19774495]
[1749339674678,1.71671969,105700.0,105690.0,0.19774504]
[1749339675081,1.69905691,105700.0,105690.0,0.19774504]
[1749339675282,1.71671965,105700.0,105690.0,0.19774504]
[1749339675504,1.7167186,105700.0,105690.0,0.19774504]
[1749339675965,1.71671859,105700.0,105690.0,0.19774504]
[1749339676164,1.71671871,105700.0,105690.0,0.19774504]
[1749339676370,1.69905691,105700.0,105690.0,0.19774504]
[1749339676524,1.71671869,105700.0,105690.0,0.19774504]
[1749339676728,0.00982169,105690.0,105680.0,0.24181012]
[1749339676925,0.30868296,105690.0,105680.0,0.35099583]
[1749339677136,0.29922142,105690.0,105680.0,0.35099583]
[1749339677681,0.30868278,105690.0,105680.0,0.35099583]
[1749339677804,0.30868278,105690.0,105680.0,0.35199583]
[1749339677996,0.30868233,105690.0,105680.0,0.35199583]
[1749339678197,0.31814369,105690.0,105680.0,0.35199583]
[1749339679048,0.31814369,105690.0,105680.0,0.35299583]
[1749339680044,0.31814369,105690.0,105680.0,0.36819583]
[1749339680444,0.32760514,105690.0,105680.0,0.36819583]
[1749339680854,0.35589196,105690.0,105680.0,0.36819583]
[1749339681341,0.34643051,105690.0,105680.0,0.36819583]
[1749339681546,0.35589196,105690.0,105680.0,0.36819583]
[1749339681751,0.35589196,105690.0,105680.0,0.35299583]
[1749339681965,0.35589196,105690.0,105680.0,0.33749583]
[1749339682343,0.35589196,105690.0,105680.0,0.35399583]
[1749339682790,0.3653535,105690.0,105680.0,0.35399583]
[1749339682993,0.35589196,105690.0,105680.0,0.35399583]
[1749339683199,0.54512534,105690.0,105680.0,0.21271038]
[1749339683422,0.56277689,105690.0,105680.0,0.22217255]
[1749339683629,0.56277679,105690.0,105680.0,0.22217255]
[1749339683838,0.56277676,105690.0,105680.0,0.22217255]
[1749339684043,0.55331558,105690.0,105680.0,0.21171038]
[1749339684248,0.55331558,105690.0,105680.0,0.22117263]
[1749339684635,0.55331562,105690.0,105680.0,0.22117263]
[1749339684866,0.62438416,105690.0,105680.0,0.22117263]
[1749339685075,0.62438416,105690.0,105680.0,0.2306348]
[1749339685278,0.64203569,105690.0,105680.0,0.2306348]
[1749339685871,0.64203569,105690.0,105680.0,0.23909688]
[1749339686290,0.64203584,105690.0,105680.0,0.23909688]
[1749339686890,0.62438416,105690.0,105680.0,0.23909688]
[1749339687067,0.64203584,105690.0,105680.0,0.23909688]
[1749339687275,0.63364855,105690.0,105680.0,0.23909688]
[1749339687453,0.63364855,105690.0,105680.0,0.25489688]
[1749339689646,1.12452855,105690.0,105680.0,0.25489688]
[1749339690609,1.12452855,105690.0,105680.0,0.26435887]
[1749339691029,1.12452855,105690.0,105680.0,0.25489688]
[1749339692011,1.12452855,105690.0,105680.0,0.26435887]
[1749339694344,1.66996855,105690.0,105680.0,0.26435887]
[1749339697248,1.47147141,105690.0,105680.0,0.26435887]
[1749339697404,1.66070407,105690.0,105680.0,0.26435887]
[1749339699443,1.47147141,105690.0,105680.0,0.26435887]
[1749339700076,1.48093304,105690.0,105680.0,0.26435887]
[1749339700476,1.47147141,105690.0,105680.0,0.26435843]
[1749339700783,1.47147141,105690.0,105680.0,0.24543498]
[1749339701008,1.48093304,105690.0,105680.0,0.25489715]
[1749339701687,1.45264622,105690.0,105680.0,0.26435905]
[1749339701828,1.47030253,105690.0,105680.0,0.26435905]
[1749339702028,1.45264622,105690.0,105680.0,0.26435905]
[1749339702228,1.47030253,105690.0,105680.0,0.26435905]
[1749339703450,1.47030257,105690.0,105680.0,0.26435905]
[1749339703802,1.45264622,105690.0,105680.0,0.26435905]
[1749339704009,1.47030257,105690.0,105680.0,0.26435905]
[1749339704229,1.47030255,105690.0,105680.0,0.26435905]
[1749339704694,1.47030257,105690.0,105680.0,0.26435905]
[1749339705649,1.47030679,105690.0,105680.0,0.26435905]
[1749339705847,1.45264622,105690.0,105680.0,0.26435905]
[1749339706470,1.03668024,105690.0,105680.0,0.28015905]
[1749339706672,1.41480024,105690.0,105680.0,0.37655853]
[1749339706885,1.41444,105690.0,105680.0,0.37655853]
[1749339707085,1.41444,105690.0,105680.0,0.67209231]
[1749339707086,1.03632,105690.0,105680.0,0.67209231]
[1749339707489,1.12504,105690.0,105680.0,0.37655853]
[1749339707687,1.12504,105690.0,105680.0,0.67209231]
[1749339710403,1.12540024,105690.0,105680.0,0.67209231]
[1749339710610,1.12504,105690.0,105680.0,0.67209231]
[1749339710813,1.12540024,105690.0,105680.0,0.37655853]
[1749339711655,1.12504,105690.0,105680.0,0.37655853]
[1749339711875,1.12540024,105690.0,105680.0,0.37655853]
[1749339712128,1.12504,105690.0,105680.0,0.37655853]
[1749339712333,1.12540024,105690.0,105680.0,0.37655853]
[1749339713410,0.57996024,105690.0,105680.0,0.37655853]
[1749339715814,0.57992024,105690.0,105680.0,0.37655853]
[1749339719655,0.57956,105690.0,105680.0,0.37655853]
[1749339719861,0.57992024,105690.0,105680.0,0.37655853]
[1749339723166,0.57992024,105690.0,105680.0,0.35655853]
[1749339725780,0.49088,105690.0,105680.0,0.65209231]
[1749339726000,0.002,105710.0,105700.0,0.24799587]
[1749339726214,0.002,105710.0,105700.0,0.63992913]
[1749339726215,0.49288,105710.0,105700.0,0.63992913]
[1749339726445,0.58156,105710.0,105700.0,0.63992913]
[1749339727522,0.58356,105710.0,105700.0,0.63992913]
[1749339728376,0.58456,105710.0,105700.0,0.63992913]
[1749339729237,0.58492024,105710.0,105700.0,0.63992913]
[1749339731317,0.49624024,105710.0,105700.0,0.63992913]
[1749339731546,0.58492024,105710.0,105700.0,0.63992913]
[1749339733715,0.58492024,105710.0,105700.0,0.34439535]
[1749339734576,0.58492024,105710.0,105700.0,0.63992913]
[1749339735883,0.49588,105710.0,105700.0,0.63992913]
[1749339736087,0.58456,105710.0,105700.0,0.63992913]
[1749339736935,0.58492024,105710.0,105700.0,0.63992913]
[1749339737596,0.58456,105710.0,105700.0,0.34439535]
[1749339737807,0.58492024,105710.0,105700.0,0.34439535]
[1749339738536,0.58456,105710.0,105700.0,0.34439535]
[1749339741286,0.58456,105710.0,105700.0,0.63992913]
[1749339743075,0.58492024,105710.0,105700.0,0.63992913]
[1749339743296,0.58456,105710.0,105700.0,0.63992913]
[1749339744957,0.49588,105710.0,105700.0,0.63992913]
[1749339745165,0.58448,105710.0,105700.0,0.63992913]
[1749339759007,0.58484024,105710.0,105700.0,0.92912913]
[1749339760817,0.58484024,105710.0,105700.0,0.63359535]
[1749339761075,0.58484024,105710.0,105700.0,0.92912913]
[1749339761299,0.58484024,105710.0,105700.0,0.91372913]
[1749339762404,0.58484024,105710.0,105700.0,0.92972913]
[1749339762873,0.58448,105710.0,105700.0,0.92972913]
[1749339763088,0.58484024,105710.0,105700.0,0.92972913]
[1749339764180,0.58484024,105710.0,105700.0,0.63419535]
[1749339765814,0.58448,105710.0,105700.0,0.63419535]
[1749339766039,0.49624024,105710.0,105700.0,0.92972913]
[1749339766252,0.58484024,105710.0,105700.0,0.92972913]
[1749339766757,0.58484024,105710.0,105700.0,0.91372913]
[1749339767182,0.58484024,105710.0,105700.0,0.61819535]
[1749339767764,0.58484024,105710.0,105700.0,0.32899535]
[1749339767954,0.58484024,105710.0,105700.0,0.61815535]
[1749339768178,0.58484024,105710.0,105700.0,0.32899535]
[1749339768551,0.58484024,105710.0,105700.0,0.61815535]
[1749339771297,0.58448,105710.0,105700.0,0.61815535]
[1749339771488,0.58484024,105710.0,105700.0,0.61815535]
[1749339773189,0.58484024,105710.0,105700.0,0.32899535]
[1749339773406,0.58484024,105710.0,105700.0,0.61815535]
[1749339774078,0.58448,105710.0,105700.0,0.61815535]
[1749339774291,0.58484024,105710.0,105700.0,0.61815535]
[1749339775526,0.58448,105710.0,105700.0,0.61815535]
[1749339775747,0.58484024,105710.0,105700.0,0.61815535]
[1749339778340,0.58448,105710.0,105700.0,0.61815535]
[1749339778551,0.58484024,105710.0,105700.0,0.61815535]
[1749339778955,0.58448,105710.0,105700.0,0.61815535]
[1749339779163,0.58484024,105710.0,105700.0,0.61815535]
[1749339780453,0.58484024,105710.0,105700.0,0.61811535]
[1749339780667,0.58484024,105710.0,105700.0,0.31399535]
[1749339780873,0.61614024,105710.0,105700.0,0.31399535]
[1749339781094,0.61614024,105710.0,105700.0,0.60311535]
[1749339783683,0.61578,105710.0,105700.0,0.60311535]
[1749339783937,0.61614024,105710.0,105700.0,0.60311535]
[1749339786778,0.60104024,105710.0,105700.0,0.60311535]
[1749339796643,0.58484024,105710.0,105700.0,0.60311535]
[1749339806349,0.58448,105710.0,105700.0,0.60311535]
[1749339806583,0.58484024,105710.0,105700.0,0.60311535]
[1749339812935,0.58448,105710.0,105700.0,0.60311535]
[1749339813144,0.58484024,105710.0,105700.0,0.60311535]
[1749339818635,0.58448,105710.0,105700.0,0.60311535]
[1749339818877,0.58484024,105710.0,105700.0,0.60311535]
[1749339819325,0.58448,105710.0,105700.0,0.60311535]
[1749339819533,0.58484024,105710.0,105700.0,0.60311535]
[1749339823208,0.58484024,105710.0,105700.0,0.60303535]
[1749339825522,0.58448,105710.0,105700.0,0.60303535]
[1749339825726,0.58484024,105710.0,105700.0,0.60303535]
[1749339827245,0.58484024,105710.0,105700.0,0.31399535]
[1749339827486,0.58484024,105710.0,105700.0,0.60299535]
[1749339833490,0.58484024,105710.0,105700.0,0.61959535]
[1749339839578,0.58448,105710.0,105700.0,0.61959535]
[1749339839811,0.58484024,105710.0,105700.0,0.61959535]
[1749339842423,0.58472024,105710.0,105700.0,0.61959535]
[1749339845160,0.58436,105710.0,105700.0,0.61959535]
[1749339845375,0.58472024,105710.0,105700.0,0.61959535]
[1749339849180,0.58472024,105710.0,105700.0,0.33059535]
[1749339849386,0.58472024,105710.0,105700.0,0.61951535]
[1749339855775,0.58436,105710.0,105700.0,0.61951535]
[1749339855982,0.58472024,105710.0,105700.0,0.61951535]
[1749339858762,0.58436,105710.0,105700.0,0.61951535]
[1749339858988,0.58472024,105710.0,105700.0,0.61951535]
[1749339862442,0.58436,105710.0,105700.0,0.61951535]
[1749339862872,0.58472024,105710.0,105700.0,0.61951535]
[1749339863305,0.58436,105710.0,105700.0,0.63591535]
[1749339863515,0.58436,105710.0,105700.0,1.24152376]
[1749339863730,0.58436,105710.0,105700.0,1.3171398]
[1749339863947,0.49588,105710.0,105700.0,1.3171398]
[1749339864162,0.58472024,105710.0,105700.0,1.3171398]
[1749339864420,0.58436,105710.0,105700.0,1.3171398]
[1749339864634,0.58236,105710.0,105700.0,1.3171398]
[1749339865260,0.58236,105710.0,105700.0,2.0171398]
[1749339866192,0.49388,105710.0,105700.0,2.0171398]
[1749339866405,0.58128,105710.0,105700.0,2.0171398]
[1749339866858,0.49288,105710.0,105700.0,1.94152376]
[1749339867084,0.58128,105710.0,105700.0,2.0171398]
[1749339867545,0.58164024,105710.0,105700.0,1.94152376]
[1749339867775,0.58128,105710.0,105700.0,2.24042376]
[1749339867976,0.58128,105710.0,105700.0,2.24142376]
[1749339868258,0.58164024,105710.0,105700.0,2.24142376]
[1749339868699,0.58128,105710.0,105700.0,2.24142376]
[1749339868906,0.58164024,105710.0,105700.0,2.24142376]
[1749339869115,0.58128,105710.0,105700.0,2.24142376]
[1749339869326,0.58164024,105710.0,105700.0,2.24142376]
[1749339870137,0.58128,105710.0,105700.0,2.24142376]
[1749339870353,0.58164024,105710.0,105700.0,2.24142376]
[1749339871176,0.58128,105710.0,105700.0,2.24142376]
[1749339871384,0.58164024,105710.0,105700.0,2.24142376]
[1749339872735,0.58164024,105710.0,105700.0,1.6503562]
[1749339872948,0.58164024,105710.0,105700.0,2.24142376]
[1749339873157,0.58128,105710.0,105700.0,2.24142376]
[1749339873441,0.58164024,105710.0,105700.0,2.24142376]
[1749339873971,0.58128,105710.0,105700.0,2.24142376]
[1749339874178,0.58164024,105710.0,105700.0,2.24142376]
[1749339874384,0.58128,105710.0,105700.0,2.24142376]
[1749339874607,0.58164024,105710.0,105700.0,2.24142376]
[1749339876537,0.58164024,105710.0,105700.0,1.94588998]
[1749339876739,0.58128,105710.0,105700.0,1.94588998]
[1749339876943,0.58164024,105710.0,105700.0,1.94588998]
[1749339878308,0.0904,105710.0,105700.0,1.72360602]
[1749339878704,0.0904,105710.0,105700.0,1.64798998]
[1749339879229,0.0904,105710.0,105700.0,1.72360602]
[1749339879436,0.0904,105710.0,105700.0,1.64798998]
[1749339879642,0.0904,105710.0,105700.0,1.94352376]
[1749339879892,0.09076024,105710.0,105700.0,1.94352376]
[1749339880310,0.0904,105710.0,105700.0,1.94352376]
[1749339880442,0.0904,105710.0,105700.0,1.64798998]
[1749339880658,0.09076024,105710.0,105700.0,1.64798998]
[1749339880862,0.0904,105710.0,105700.0,1.64798998]
[1749339881088,0.09076024,105710.0,105700.0,1.64798998]
[1749339881467,0.0904,105710.0,105700.0,1.64798998]
[1749339881701,0.09076024,105710.0,105700.0,1.64798998]
[1749339882635,0.0904,105710.0,105700.0,1.64798998]
[1749339882834,0.09076024,105710.0,105700.0,1.64798998]
[1749339883338,0.0904,105710.0,105700.0,1.64798998]
[1749339883759,0.09076024,105710.0,105700.0,1.72360602]
[1749339888405,0.09076024,105710.0,105700.0,2.02150602]
[1749339888650,0.0904,105710.0,105700.0,2.02150602]
[1749339888896,0.09076024,105710.0,105700.0,2.02150602]
[1749339889912,0.0904,105710.0,105700.0,2.02150602]
[1749339890117,0.09076024,105710.0,105700.0,2.3170398]
[1749339891999,0.09076024,105710.0,105700.0,2.02150602]
[1749339893080,0.0904,105710.0,105700.0,2.02150602]
[1749339893284,0.09076024,105710.0,105700.0,2.02150602]
[1749339894711,0.0904,105710.0,105700.0,2.02150602]
[1749339894925,0.09076024,105710.0,105700.0,2.02150602]
[1749339895540,0.0904,105710.0,105700.0,2.02150602]
[1749339895750,0.09076024,105710.0,105700.0,2.02150602]
[1749339897815,0.09072024,105710.0,105700.0,2.02150602]
[1749339898023,0.09036,105710.0,105700.0,2.02150602]
[1749339898228,0.09072024,105710.0,105700.0,2.02150602]
[1749339900298,0.09072024,105710.0,105700.0,1.72597224]
[1749339900508,0.09072024,105710.0,105700.0,2.02150602]
[1749339902055,0.09036,105710.0,105700.0,2.02150602]
[1749339902512,0.09036,105710.0,105700.0,2.6570398]
[1749339902513,0.002,105710.0,105700.0,2.6570398]
[1749339902753,0.09036,105710.0,105700.0,2.58142376]
[1749339902987,0.09036,105710.0,105700.0,2.70436879]
[1749339903679,0.09036,105710.0,105700.0,2.70336879]
[1749339903941,0.002,105710.0,105700.0,2.70336879]
[1749339904174,0.09036,105710.0,105700.0,2.70536879]
[1749339904648,0.09036,105710.0,105700.0,2.70736879]
[1749339925849,0.09036,105710.0,105700.0,2.00736879]
[1749339928867,0.09036,105710.0,105700.0,2.70736879]
[1749339938175,0.09036,105710.0,105700.0,2.00736879]
[1749339940676,0.09036,105710.0,105700.0,1.99096879]
[1749339941096,0.09036,105710.0,105700.0,2.69096879]
[1749339949943,0.09036,105710.0,105700.0,2.66255079]
[1749339952989,0.09036,105710.0,105700.0,2.35703079]
[1749339953208,0.09036,105710.0,105700.0,2.64555079]
[1749339959323,0.10686,105710.0,105700.0,1.72149701]
[1749339959527,0.12342024,105710.0,105700.0,1.61754998]
[1749339959967,0.12342024,105710.0,105700.0,1.69323739]
[1749339962248,0.12342024,105710.0,105700.0,0.99323739]
[1749339966266,0.12342024,105710.0,105700.0,0.99315771]
[1749339968409,0.12342024,105710.0,105700.0,0.70467771]
[1749339968646,0.12342024,105710.0,105700.0,0.99311771]
[1749339969988,0.12342024,105710.0,105700.0,0.69758393]
[1749339970206,0.12342024,105710.0,105700.0,0.99311771]
[1749339971298,0.12342024,105710.0,105700.0,0.69758393]
[1749339971519,0.12342024,105710.0,105700.0,0.99311771]
[1749339974599,0.12342024,105710.0,105700.0,0.70467771]
[1749339974786,0.12342024,105710.0,105700.0,0.6289903]
[1749339975067,0.12342024,105710.0,105700.0,0.99311771]
[1749339975317,0.12342024,105710.0,105700.0,0.40914393]
[1749339975534,0.12342024,105710.0,105700.0,0.60731567]
[1749339977566,0.12342024,105710.0,105700.0,0.60531567]
[1749339977769,0.12342024,105710.0,105700.0,0.60331567]
[1749339978400,0.12342024,105710.0,105700.0,0.31491567]
[1749339978598,0.12342024,105710.0,105700.0,0.60331567]
[1749339979313,0.12342024,105710.0,105700.0,0.60431567]
[1749339979818,0.12342024,105710.0,105700.0,0.31591567]
[1749339980075,0.12342024,105710.0,105700.0,0.60431567]
[1749339980317,0.12342024,105710.0,105700.0,0.31591567]
[1749339980550,0.12342024,105710.0,105700.0,0.60431567]
[1749339985561,0.13287927,105710.0,105700.0,0.60431567]
[1749339986248,0.12342024,105710.0,105700.0,0.60431567]
[1749339987142,0.12342024,105710.0,105700.0,0.21951619]
[1749339987355,0.13287945,105710.0,105700.0,0.50791619]
[1749339989640,0.13287936,105710.0,105700.0,0.50791619]
[1749339990782,0.12342024,105710.0,105700.0,0.50791619]
[1749339991006,0.13287927,105710.0,105700.0,0.50791619]
[1749339992362,0.14233839,105710.0,105700.0,0.50791619]
[1749339992800,0.13287927,105710.0,105700.0,0.50791619]
[1749339995569,0.12342024,105710.0,105700.0,0.50791619]
[1749339995776,0.13287927,105710.0,105700.0,0.50791619]
[1749339996608,0.12342024,105710.0,105700.0,0.50791619]
[1749339996813,0.61418024,105710.0,105700.0,0.50791619]
[1749339997031,0.62363927,105710.0,105700.0,0.50791619]
[1749339997451,0.61418024,105710.0,105700.0,0.50791619]
[1749339999852,0.61418024,105710.0,105700.0,0.80344997]
[1749339999853,0.52582024,105710.0,105700.0,0.80344997]
[1749340000081,0.58128024,105710.0,105700.0,1.19538323]
[1749340000360,0.58128024,105710.0,105700.0,1.22738323]
[1749340000805,0.58092,105710.0,105700.0,1.22738323]
[1749340002667,0.58128024,105710.0,105700.0,1.22738323]
[1749340002894,0.58092,105710.0,105700.0,1.22738323]
[1749340003101,0.58128024,105710.0,105700.0,1.22738323]
[1749340003317,0.58092,105710.0,105700.0,1.22738323]
[1749340003539,0.58128024,105710.0,105700.0,1.22738323]
[1749340003813,0.58128024,105710.0,105700.0,0.63631567]
[1749340004093,0.58128024,105710.0,105700.0,0.91554945]
[1749340004628,0.58128024,105710.0,105700.0,0.62001567]
[1749340004894,0.58128024,105710.0,105700.0,0.91554945]
[1749340006063,0.58128024,105710.0,105700.0,0.91550945]
[1749340006504,0.58128024,105710.0,105700.0,0.93070945]
[1749340008747,0.58092,105710.0,105700.0,0.93070945]
[1749340008955,0.58128024,105710.0,105700.0,0.93070945]
[1749340010841,0.58092,105710.0,105700.0,0.93070945]
[1749340011045,0.58128024,105710.0,105700.0,0.93070945]
[1749340018594,0.58092,105710.0,105700.0,0.93070945]
[1749340018826,0.58128024,105710.0,105700.0,0.93070945]
[1749340025271,0.49312024,105710.0,105700.0,1.22624323]
[1749340025480,0.49312024,105710.0,105700.0,1.24078408]
[1749340025481,0.58124024,105710.0,105700.0,1.24078408]
[1749340027101,0.58088,105710.0,105700.0,1.24078408]
[1749340027316,0.58124024,105710.0,105700.0,1.24078408]
[1749340027752,0.58088,105710.0,105700.0,1.24078408]
[1749340027983,0.58124024,105710.0,105700.0,1.24078408]
[1749340028199,0.58088,105710.0,105700.0,1.24078408]
[1749340028428,0.58124024,105710.0,105700.0,1.24078408]
[1749340029048,0.58088,105710.0,105700.0,1.24078408]
[1749340029256,0.58124024,105710.0,105700.0,1.24078408]
[1749340030117,0.09048024,105710.0,105700.0,1.24078408]
[1749340031484,0.09048024,105710.0,105700.0,1.31647149]
[1749340031689,0.09012,105710.0,105700.0,1.31647149]
[1749340031898,0.09048024,105710.0,105700.0,1.31647149]
[1749340032293,0.09012,105710.0,105700.0,1.31647149]
[1749340032558,0.09048024,105710.0,105700.0,1.31647149]
[1749340034542,0.09048024,105710.0,105700.0,1.24078408]
[1749340034951,0.09048024,105710.0,105700.0,1.31647149]
[1749340035352,0.09048024,105710.0,105700.0,0.9452503]
[1749340035742,0.00236024,105710.0,105700.0,0.9452503]
[1749340035957,0.09048024,105710.0,105700.0,0.9452503]
[1749340036549,0.00236024,105710.0,105700.0,0.9452503]
[1749340036675,0.09048024,105710.0,105700.0,0.9452503]
[1749340037705,0.00236024,105710.0,105700.0,0.9452503]
[1749340037911,0.09048024,105710.0,105700.0,0.9452503]
[1749340040080,0.09012,105710.0,105700.0,0.9452503]
[1749340040282,0.09048024,105710.0,105700.0,0.9452503]
[1749340040497,0.09048024,105710.0,105700.0,1.02093771]
[1749340040909,0.09012,105710.0,105700.0,0.9452503]
[1749340041129,0.09048024,105710.0,105700.0,0.9452503]
[1749340042455,0.09048024,105710.0,105700.0,1.24078408]
[1749340044608,0.09048024,105710.0,105700.0,1.31647149]
[1749340049776,0.09048024,105710.0,105700.0,1.31647149]
[1749340054775,0.09012,105710.0,105700.0,1.31647149]
[1749340054984,0.09048024,105710.0,105700.0,1.31647149]
[1749340055193,0.09048024,105710.0,105700.0,1.30127149]
[1749340056035,0.09012,105710.0,105700.0,1.31707149]
[1749340056457,0.09048024,105710.0,105700.0,1.31707149]
[1749340057062,0.09012,105710.0,105700.0,1.31707149]
[1749340057309,0.09048024,105710.0,105700.0,1.31707149]
[1749340057564,0.09012,105710.0,105700.0,1.31707149]
[1749340057787,0.09048024,105710.0,105700.0,1.31707149]
[1749340060004,0.00236024,105710.0,105700.0,1.31707149]
[1749340060219,0.09004,105710.0,105700.0,1.31707149]
[1749340060440,0.09040024,105710.0,105700.0,1.31707149]
[1749340060867,0.09004,105710.0,105700.0,1.31707149]
[1749340061082,0.09040024,105710.0,105700.0,1.31707149]
[1749340061528,0.09004,105710.0,105700.0,1.31707149]
[1749340062179,0.09040024,105710.0,105700.0,1.31707149]
[1749340064018,0.09004,105710.0,105700.0,2.00127149]
[1749340064224,0.09040024,105710.0,105700.0,2.00127149]
[1749340064442,0.09004,105710.0,105700.0,2.00127149]
[1749340064693,0.09040024,105710.0,105700.0,2.00127149]
[1749340072805,0.09040024,105710.0,105700.0,1.71291149]
[1749340073045,0.09040024,105710.0,105700.0,1.41000393]
[1749340073239,0.09040024,105710.0,105700.0,1.70553771]
[1749340073659,0.09040024,105710.0,105700.0,0.71737771]
[1749340073874,0.10610024,105710.0,105700.0,0.98983771]
[1749340074346,0.12130024,105710.0,105700.0,0.9141503]
[1749340074556,0.12094,105710.0,105700.0,0.9141503]
[1749340074764,0.12130024,105710.0,105700.0,0.9141503]
[1749340078031,0.10610024,105710.0,105700.0,0.9141503]
[1749340078381,0.10574,105710.0,105700.0,0.9141503]
[1749340078586,0.10610024,105710.0,105700.0,0.9141503]
[1749340082524,0.10610024,105710.0,105700.0,0.6259903]
[1749340082734,0.10610024,105710.0,105700.0,0.9141103]
[1749340085048,0.10610024,105710.0,105700.0,0.6259903]
[1749340085255,0.10610024,105710.0,105700.0,0.9141103]
[1749340088358,0.01806024,105710.0,105700.0,0.9141103]
[1749340088565,0.10606024,105710.0,105700.0,0.9141103]
[1749340090704,0.09036024,105710.0,105700.0,0.61144945]
[1749340090934,0.12106024,105710.0,105700.0,0.89956945]
[1749340099862,0.10606024,105710.0,105700.0,0.89956945]
[1749340100943,0.09036024,105710.0,105700.0,0.89956945]
[1749340102301,0.00236024,105710.0,105700.0,0.91466945]
[1749340102566,0.09036024,105710.0,105700.0,1.28589064]
[1749340102998,0.09,105710.0,105700.0,1.28589064]
[1749340103212,0.09036024,105710.0,105700.0,1.28589064]
[1749340103425,0.09,105710.0,105700.0,1.28589064]
[1749340103646,0.002,105710.0,105700.0,1.28589064]
[1749340103867,0.09036024,105710.0,105700.0,1.30249064]
[1749340107129,0.09,105710.0,105700.0,1.31703149]
[1749340107341,0.09,105710.0,105700.0,1.61493149]
[1749340107548,0.09,105710.0,105700.0,2.31493149]
[1749340108167,0.09036024,105710.0,105700.0,2.31493149]
[1749340108373,0.09,105710.0,105700.0,2.31493149]
[1749340108561,0.09036024,105710.0,105700.0,2.31493149]
[1749340109649,0.09,105710.0,105700.0,2.31493149]
[1749340109926,0.09036024,105710.0,105700.0,2.31493149]
[1749340110334,0.09,105710.0,105700.0,2.31493149]
[1749340110548,0.09036024,105710.0,105700.0,2.31493149]
[1749340112144,0.00236024,105710.0,105700.0,2.31493149]
[1749340112368,0.09032024,105710.0,105700.0,2.31493149]
[1749340113175,0.00236024,105710.0,105700.0,2.31493149]
[1749340113388,0.09032024,105710.0,105700.0,2.31493149]
[1749340114047,0.08996,105710.0,105700.0,2.31493149]
[1749340114447,0.09032024,105710.0,105700.0,2.31493149]
[1749340114712,0.08996,105710.0,105700.0,2.31493149]
[1749340114904,0.09032024,105710.0,105700.0,2.31493149]
[1749340115438,0.08996,105710.0,105700.0,2.31493149]
[1749340115640,0.09032024,105710.0,105700.0,2.31493149]
[1749340116100,0.08996,105710.0,105700.0,2.31493149]
[1749340122361,0.08996,105710.0,105700.0,2.23924408]
[1749340124955,0.09032024,105710.0,105700.0,2.31481237]
[1749340125236,0.09032024,105710.0,105700.0,2.01691231]
[1749340126443,0.09032024,105710.0,105700.0,1.94134408]
[1749340126592,0.09032024,105710.0,105700.0,2.01692116]
[1749340126819,0.09032024,105710.0,105700.0,2.01692155]
[1749340127022,0.09032024,105710.0,105700.0,1.94134408]
[1749340130990,0.09032024,105710.0,105700.0,2.23924408]
[1749340133398,0.09032024,105710.0,105700.0,2.33377111]
[1749340140375,0.08996,105710.0,105700.0,2.33377111]
[1749340140599,0.09032024,105710.0,105700.0,2.33377111]
[1749340141653,0.08996,105710.0,105700.0,2.33377111]
[1749340141864,0.09032024,105710.0,105700.0,2.33377111]
[1749340142495,0.08996,105710.0,105700.0,2.33377111]
[1749340142701,0.09032024,105710.0,105700.0,2.33377111]
[1749340144085,0.09032024,105710.0,105700.0,1.72610355]
[1749340144301,0.09032024,105710.0,105700.0,2.31717111]
[1749340145045,0.09032024,105710.0,105700.0,1.61717111]
[1749340146194,0.09032024,105710.0,105700.0,1.02610355]
[1749340146400,0.09032024,105710.0,105700.0,1.61717111]
[1749340146656,0.09032024,105710.0,105700.0,1.32905111]
[1749340146872,0.09032024,105710.0,105700.0,1.61697111]
[1749340148143,0.09032024,105710.0,105700.0,2.31697111]
[1749340151625,0.08996,105710.0,105700.0,2.31697111]
[1749340151841,0.09032024,105710.0,105700.0,2.31697111]
[1749340153191,0.09032024,105710.0,105700.0,2.33327111]
[1749340156269,0.08992,105710.0,105700.0,2.33327111]
[1749340157125,0.08992,105710.0,105700.0,2.33227111]
[1749340157332,0.08992,105710.0,105700.0,2.33127111]
[1749340157537,0.08992,105710.0,105700.0,2.33527111]
[1749340158195,0.09028024,105710.0,105700.0,2.33527111]
[1749340159514,0.09028024,105710.0,105700.0,1.63527111]
[1749340160505,0.08992,105710.0,105700.0,1.63527111]
[1749340160718,0.09028024,105710.0,105700.0,1.63527111]
[1749340162544,0.08992,105710.0,105700.0,2.33527111]
[1749340162746,0.09028024,105710.0,105700.0,2.33527111]
[1749340165005,0.08992,105710.0,105700.0,2.33527111]
[1749340165329,0.09028024,105710.0,105700.0,2.33527111]
[1749340165764,0.08992,105710.0,105700.0,2.33527111]
[1749340165972,0.09028024,105710.0,105700.0,2.33527111]
[1749340166768,0.08992,105710.0,105700.0,2.33527111]
[1749340166983,0.09028024,105710.0,105700.0,2.33527111]
[1749340170109,0.08992,105710.0,105700.0,2.33527111]
[1749340170340,0.09028024,105710.0,105700.0,2.33527111]
[1749340173305,0.08992,105710.0,105700.0,2.33527111]
[1749340173750,0.09028024,105710.0,105700.0,2.33527111]
[1749340174385,0.08992,105710.0,105700.0,2.33527111]
[1749340174592,0.09028024,105710.0,105700.0,2.33527111]
[1749340175881,0.08992,105710.0,105700.0,2.33527111]
[1749340176086,0.09028024,105710.0,105700.0,2.33527111]
[1749340177108,0.08992,105710.0,105700.0,2.33527111]
[1749340177310,0.09028024,105710.0,105700.0,2.33527111]
[1749340180052,0.08992,105710.0,105700.0,2.33527111]
[1749340180267,0.09028024,105710.0,105700.0,2.33527111]
[1749340180475,0.002,105710.0,105700.0,2.33527111]
[1749340180696,0.002,105710.0,105700.0,3.01970489]
[1749340180888,0.10616532,105720.0,105710.0,1.17924285]
[1749340181129,0.10616532,105720.0,105710.0,2.07024916]
[1749340182213,0.10616532,105720.0,105710.0,2.07224916]
[1749340183088,0.10616532,105720.0,105710.0,1.37224916]
[1749340183311,0.10616532,105720.0,105710.0,1.37324916]
[1749340184296,0.10616532,105720.0,105710.0,1.67114916]
[1749340186283,0.10616532,105720.0,105710.0,2.37114916]
[1749340190895,0.10616532,105720.0,105710.0,2.35594916]
[1749340191847,0.10616532,105720.0,105710.0,2.37224916]
[1749340192064,0.10616532,105720.0,105710.0,2.35594916]
[1749340193896,0.10616532,105720.0,105710.0,2.26134233]
[1749340194307,0.10616532,105720.0,105710.0,2.28975833]
[1749340194513,0.10616532,105720.0,105710.0,1.69869077]
[1749340194714,0.10616532,105720.0,105710.0,2.28975833]
[1749340194837,0.10616532,105720.0,105710.0,2.08883138]
[1749340195260,0.10616532,105720.0,105710.0,1.99422455]
[1749340195528,0.10616532,105720.0,105710.0,2.28975833]
[1749340196275,0.10616532,105720.0,105710.0,2.38436516]
[1749340196514,0.10616532,105720.0,105710.0,2.28975833]
[1749340198367,0.10616532,105720.0,105710.0,2.38436516]